fUST/lending_fUST_20260609
["ID","MTS","AMOUNT","RATE_DAILY","PERIOD"]
[424469440,1780937445000,-500.0,0.00016712,2]
[424469441,1780937445000,-500.0,0.00016712,2]
[424469439,1780937445000,-251.28,0.00016712,2]
[424469448,1780937445000,-493.53372642,0.00016712,2]
[424469442,1780937445000,-626.32,0.00016712,2]
[424469436,1780937445000,-500.56221079,0.00016712,2]
[424469478,1780937445000,-500.0,0.00016712,2]
[424469435,1780937445000,-500.34239022,0.00016712,2]
[424469479,1780937445000,-530.06,0.00016712,2]
[424469515,1780937445000,-500.0,0.00016986,2]
[424469514,1780937445000,-534.97517516,0.00016986,2]
[424469522,1780937445000,-500.0,0.00016986,2]
[424469511,1780937445000,-847.8167,0.00016986,2]
[424469521,1780937445000,-626.32,0.00016986,2]
[424469513,1780937445000,-500.0,0.00016986,2]
[424469516,1780937445000,-500.0,0.00016986,2]
[424469519,1780937445000,-500.0,0.00016986,2]
[424469518,1780937445000,-500.0,0.00016986,2]
[424469520,1780937445000,-500.0,0.00016986,2]
[424469517,1780937445000,-500.0,0.00016986,2]
[424469537,1780937445000,-448.82181217,0.00016986,2]
[424469528,1780937445000,-500.0,0.00016986,2]
[424469533,1780937445000,-500.0,0.00016986,2]
[424469531,1780937445000,-9671.73,0.00016986,2]
[424469526,1780937445000,-500.0,0.00016986,2]
[424469524,1780937445000,-500.0,0.00016986,2]
[424469529,1780937445000,-500.0,0.00016986,2]
[424469535,1780937445000,-500.0,0.00016986,2]
[424469527,1780937445000,-175.76,0.00016986,2]
[424469476,1780937445000,-500.0,0.00016712,2]
[424469539,1780937445000,-722.56,0.00016986,2]
[424469541,1780937445000,-500.0,0.00016986,2]
[424469543,1780937445000,-730.06,0.00016986,2]
[424469545,1780937445000,-500.0,0.00016986,2]
[424469547,1780937445000,-2009.88,0.00016986,2]
[424469549,1780937445000,-500.0,0.00016986,2]
[424469512,1780937445000,-500.0,0.00016986,2]
[424469507,1780937445000,-3625.0,0.00016978,2]
[424469530,1780937445000,-553.53,0.00016986,2]
[424469505,1780937445000,-2206.0,0.00016978,2]
[424469504,1780937445000,-1416.0,0.00016978,2]
[424469487,1780937445000,-2681.41,0.00016712,2]
[424469486,1780937445000,-796.01,0.00016712,2]
[424469485,1780937445000,-1265.64,0.00016712,2]
[424469480,1780937445000,-500.0,0.00016712,2]
[424469484,1780937445000,-500.0,0.00016712,2]
[424469483,1780937445000,-560.11,0.00016712,2]
[424469481,1780937445000,-1380.01,0.00016712,2]
[424469489,1780937445000,-500.0,0.00016712,2]
[424469490,1780937445000,-701.8,0.00016712,2]
[424469501,1780937445000,-452.97126194,0.00016712,2]
[424469502,1780937445000,-151.0,0.000169,2]
[424469500,1780937445000,-500.0,0.00016712,2]
[424469482,1780937445000,-500.0,0.00016712,2]
[424469493,1780937445000,-471.98,0.00016712,2]
[424469491,1780937445000,-1512.15,0.00016712,2]
[424469509,1780937445000,-609.4154,0.00016986,2]
[424469508,1780937445000,-744.0,0.00016978,2]
[424469510,1780937445000,-500.0,0.00016986,2]
[424469503,1780937445000,-151.0,0.00016963,2]
[424469499,1780937445000,-500.0,0.00016712,2]
[424469506,1780937445000,-444.0,0.00016978,2]
[424469498,1780937445000,-741.25,0.00016712,2]
[424469495,1780937445000,-500.0,0.00016712,2]
[424469496,1780937445000,-605.61,0.00016712,2]
[424469494,1780937445000,-500.0,0.00016712,2]
[424469492,1780937445000,-500.0,0.00016712,2]
[424469497,1780937445000,-500.0,0.00016712,2]
[424469600,1780937446000,-1457.2321,0.0001726,2]
[424469602,1780937446000,-500.0,0.0001726,2]
[424469606,1780937446000,-500.0,0.0001726,2]
[424469604,1780937446000,-500.0,0.0001726,2]
[424469608,1780937446000,-500.0,0.0001726,2]
[424469610,1780937446000,-474.95015315,0.0001726,2]
[424469613,1780937446000,-500.0,0.0001726,2]
[424469617,1780937446000,-500.0,0.0001726,2]
[424469624,1780937446000,-626.32,0.0001726,2]
[424469637,1780937446000,-357.01,0.0001726,2]
[424469621,1780937446000,-500.0,0.0001726,2]
[424469631,1780937446000,-500.0,0.0001726,2]
[424469634,1780937446000,-500.0,0.0001726,2]
[424469639,1780937446000,-500.0,0.0001726,2]
[424469643,1780937446000,-9671.73,0.0001726,2]
[424469646,1780937446000,-500.0,0.0001726,2]
[424469648,1780937446000,-500.0,0.0001726,2]
[424469651,1780937446000,-722.56,0.0001726,2]
[424469598,1780937446000,-500.0,0.0001726,2]
[424469627,1780937446000,-500.0,0.0001726,2]
[424469596,1780937446000,-157.0,0.00017151,3]
[424469566,1780937446000,-1265.64,0.00016986,2]
[424469592,1780937446000,-200.0,0.000171,2]
[424469551,1780937446000,-500.0,0.00016986,2]
[424469562,1780937446000,-560.11,0.00016986,2]
[424469560,1780937446000,-500.0,0.00016986,2]
[424469558,1780937446000,-1380.01,0.00016986,2]
[424469557,1780937446000,-500.0,0.00016986,2]
[424469555,1780937446000,-530.06,0.00016986,2]
[424469553,1780937446000,-500.0,0.00016986,2]
[424469564,1780937446000,-500.0,0.00016986,2]
[424469581,1780937446000,-605.61,0.00016986,2]
[424469594,1780937446000,-150.0,0.0001711,2]
[424469579,1780937446000,-500.0,0.00016986,2]
[424469583,1780937446000,-500.0,0.00016986,2]
[424469570,1780937446000,-2681.41,0.00016986,2]
[424469572,1780937446000,-701.8,0.00016986,2]
[424469587,1780937446000,-500.0,0.00016986,2]
[424469577,1780937446000,-500.0,0.00016986,2]
[424469575,1780937446000,-500.0,0.00016986,2]
[424469574,1780937446000,-1512.15,0.00016986,2]
[424469585,1780937446000,-741.25,0.00016986,2]
[424469590,1780937446000,-500.0,0.00016986,2]
[424469568,1780937446000,-796.01,0.00016986,2]
[424469657,1780937446000,-730.06,0.0001726,2]
[424469654,1780937446000,-500.0,0.0001726,2]
[424469662,1780937446000,-2009.88,0.0001726,2]
[424469721,1780937446000,-208.851973,0.00017358,2]
[424469725,1780937446000,-162.0,0.00017476,2]
[424469729,1780937446000,-500.0,0.00017534,2]
[424469727,1780937446000,-151.0,0.00017511,2]
[424469731,1780937446000,-932.6297,0.00017534,2]
[424469736,1780937446000,-500.0,0.00017534,2]
[424469734,1780937446000,-500.0,0.00017534,2]
[424469738,1780937446000,-500.0,0.00017534,2]
[424469740,1780937446000,-500.0,0.00017534,2]
[424469723,1780937446000,-180.72062066,0.00017366,2]
[424469743,1780937446000,-524.612328,0.00017534,2]
[424469748,1780937446000,-500.0,0.00017534,2]
[424469761,1780937446000,-9671.73,0.00017534,2]
[424469757,1780937446000,-500.0,0.00017534,2]
[424469759,1780937446000,-500.0,0.00017534,2]
[424469752,1780937446000,-500.0,0.00017534,2]
[424469755,1780937446000,-500.0,0.00017534,2]
[424469765,1780937446000,-500.0,0.00017534,2]
[424469763,1780937446000,-500.0,0.00017534,2]
[424469659,1780937446000,-500.0,0.0001726,2]
[424469745,1780937446000,-500.0,0.00017534,2]
[424469719,1780937446000,-185.656675,0.00017349,2]
[424469750,1780937446000,-626.32,0.00017534,2]
[424469715,1780937446000,-500.0,0.0001726,2]
[424469667,1780937446000,-500.0,0.0001726,2]
[424469717,1780937446000,-500.0,0.0001726,2]
[424469665,1780937446000,-500.0,0.0001726,2]
[424469672,1780937446000,-530.06,0.0001726,2]
[424469670,1780937446000,-500.0,0.0001726,2]
[424469674,1780937446000,-500.0,0.0001726,2]
[424469679,1780937446000,-500.0,0.0001726,2]
[424469690,1780937446000,-2681.41,0.0001726,2]
[424469693,1780937446000,-701.8,0.0001726,2]
[424469695,1780937446000,-1512.15,0.0001726,2]
[424469677,1780937446000,-1380.01,0.0001726,2]
[424469681,1780937446000,-560.11,0.0001726,2]
[424469688,1780937446000,-796.01,0.0001726,2]
[424469686,1780937446000,-1265.64,0.0001726,2]
[424469698,1780937446000,-500.0,0.0001726,2]
[424469711,1780937446000,-500.0,0.0001726,2]
[424469702,1780937446000,-500.0,0.0001726,2]
[424469700,1780937446000,-500.0,0.0001726,2]
[424469683,1780937446000,-500.0,0.0001726,2]
[424469713,1780937446000,-741.25,0.0001726,2]
[424469705,1780937446000,-605.61,0.0001726,2]
[424469855,1780937447000,-197.57671184,0.00017766,2]
[424469851,1780937447000,-158.85792783,0.00017766,2]
[424469861,1780937447000,-163.73358454,0.00017766,2]
[424469849,1780937447000,-463.015678,0.00017738,2]
[424469847,1780937447000,-348.745284,0.00017738,2]
[424469840,1780937447000,-160.0,0.00017703,2]
[424469843,1780937447000,-2077.063362,0.00017703,2]
[424469830,1780937447000,-824.0,0.00017652,2]
[424469838,1780937447000,-156.0,0.00017702,2]
[424469832,1780937447000,-265.0,0.00017702,2]
[424469853,1780937447000,-153.78330601,0.00017766,2]
[424469828,1780937447000,-712.323463,0.00017626,2]
[424469845,1780937447000,-185.656674,0.00017733,2]
[424469865,1780937447000,-151.83268889,0.00017766,2]
[424469877,1780937447000,-175.33425272,0.00017766,2]
[424469863,1780937447000,-186.1133675,0.00017766,2]
[424469857,1780937447000,-194.74077102,0.00017766,2]
[424469859,1780937447000,-150.15444321,0.00017766,2]
[424469867,1780937447000,-166.44767896,0.00017766,2]
[424469869,1780937447000,-218.48713253,0.00017766,2]
[424469871,1780937447000,-217.35068386,0.00017766,2]
[424469873,1780937447000,-154.49534068,0.00017766,2]
[424469875,1780937447000,-160.07660394,0.00017766,2]
[424469888,1780937447000,-159.99168202,0.00017766,2]
[424469883,1780937447000,-153.94417986,0.00017766,2]
[424469879,1780937447000,-152.32865853,0.00017766,2]
[424469885,1780937447000,-161.81537078,0.00017766,2]
[424469822,1780937447000,-151.0,0.000176,2]
[424469842,1780937447000,-1118.531681,0.00017703,2]
[424469836,1780937447000,-355.0,0.00017702,2]
[424469775,1780937447000,-2009.88,0.00017534,2]
[424469834,1780937447000,-204.0,0.00017702,2]
[424469890,1780937447000,-153.41616839,0.00017766,2]
[424469767,1780937447000,-722.56,0.00017534,2]
[424469771,1780937447000,-730.06,0.00017534,2]
[424469769,1780937447000,-500.0,0.00017534,2]
[424469779,1780937447000,-500.0,0.00017534,2]
[424469773,1780937447000,-500.0,0.00017534,2]
[424469782,1780937447000,-500.0,0.00017534,2]
[424469783,1780937447000,-530.06,0.00017534,2]
[424469777,1780937447000,-500.0,0.00017534,2]
[424469786,1780937447000,-221.8,0.00017534,2]
[424469788,1780937447000,-1380.01,0.00017534,2]
[424469790,1780937447000,-500.0,0.00017534,2]
[424469792,1780937447000,-560.11,0.00017534,2]
[424469826,1780937447000,-436.161731,0.00017626,2]
[424469800,1780937447000,-2681.41,0.00017534,2]
[424469798,1780937447000,-796.01,0.00017534,2]
[424469794,1780937447000,-500.0,0.00017534,2]
[424469796,1780937447000,-1265.64,0.00017534,2]
[424469802,1780937447000,-701.8,0.00017534,2]
[424469804,1780937447000,-1512.15,0.00017534,2]
[424469806,1780937447000,-500.0,0.00017534,2]
[424469810,1780937447000,-500.0,0.00017534,2]
[424469814,1780937447000,-500.0,0.00017534,2]
[424469812,1780937447000,-605.61,0.00017534,2]
[424469816,1780937447000,-741.25,0.00017534,2]
[424469820,1780937447000,-200.57718008,0.00017534,2]
[424469818,1780937447000,-500.0,0.00017534,2]
[424469824,1780937447000,-160.0,0.00017626,2]
[424469808,1780937447000,-500.0,0.00017534,2]
[424469881,1780937447000,-167.07964257,0.00017766,2]
[424469935,1780937447000,-722.56,0.00017808,2]
[424469896,1780937447000,-324.80638286,0.00017766,2]
[424469957,1780937447000,-1512.15,0.00017808,2]
[424469958,1780937447000,-500.0,0.00017808,2]
[424469948,1780937447000,-530.06,0.00017808,2]
[424469952,1780937447000,-500.0,0.00017808,2]
[424469951,1780937447000,-560.11,0.00017808,2]
[424469968,1780937447000,-191.26304839,0.00017824,2]
[424469969,1780937447000,-159.03839289,0.00017824,2]
[424469960,1780937447000,-500.0,0.00017808,2]
[424469959,1780937447000,-309.65123962,0.00017808,2]
[424469962,1780937447000,-741.25,0.00017808,2]
[424469961,1780937447000,-605.61,0.00017808,2]
[424469963,1780937447000,-500.0,0.00017808,2]
[424469964,1780937447000,-500.0,0.00017808,2]
[424469953,1780937447000,-1265.64,0.00017808,2]
[424469967,1780937447000,-188.16479988,0.00017824,2]
[424469965,1780937447000,-288.699,0.0001782,2]
[424469970,1780937447000,-199.11420604,0.00017824,2]
[424469972,1780937447000,-209.23207907,0.00017824,2]
[424469973,1780937447000,-179.18903908,0.00017824,2]
[424469971,1780937447000,-211.17360478,0.00017824,2]
[424469980,1780937447000,-191.16749407,0.00017826,2]
[424469981,1780937447000,-194.51966643,0.00017826,2]
[424469974,1780937447000,-158.65260595,0.00017824,2]
[424469977,1780937447000,-197.4954729,0.00017824,2]
[424469978,1780937447000,-180.66617305,0.00017824,2]
[424469975,1780937447000,-154.67130856,0.00017824,2]
[424469982,1780937447000,-162.74254568,0.00017826,2]
[424469979,1780937447000,-150.00089719,0.00017824,2]
[424469966,1780937447000,-190.8023866,0.00017824,2]
[424469950,1780937447000,-500.0,0.00017808,2]
[424469894,1780937447000,-207.68469332,0.00017766,2]
[424469955,1780937447000,-2681.41,0.00017808,2]
[424469956,1780937447000,-701.8,0.00017808,2]
[424469898,1780937447000,-417.47324199,0.00017766,2]
[424469900,1780937447000,-180.26420843,0.00017766,2]
[424469906,1780937447000,-500.0,0.00017808,2]
[424469910,1780937447000,-500.0,0.00017808,2]
[424469902,1780937447000,-178.30810605,0.0001778,2]
[424469904,1780937447000,-500.0,0.00017808,2]
[424469908,1780937447000,-500.0,0.00017808,2]
[424469912,1780937447000,-187.89570925,0.00017808,2]
[424469917,1780937447000,-500.0,0.00017808,2]
[424469915,1780937447000,-500.0,0.00017808,2]
[424469919,1780937447000,-626.32,0.00017808,2]
[424469931,1780937447000,-280.18,0.00017808,2]
[424469923,1780937447000,-500.0,0.00017808,2]
[424469892,1780937447000,-187.50261605,0.00017766,2]
[424469976,1780937447000,-199.96713329,0.00017824,2]
[424469944,1780937447000,-500.0,0.00017808,2]
[424469946,1780937447000,-500.0,0.00017808,2]
[424469949,1780937447000,-1380.01,0.00017808,2]
[424469943,1780937447000,-500.0,0.00017808,2]
[424469921,1780937447000,-500.0,0.00017808,2]
[424469942,1780937447000,-2009.88,0.00017808,2]
[424469954,1780937447000,-796.01,0.00017808,2]
[424469928,1780937447000,-9671.73,0.00017808,2]
[424469940,1780937447000,-500.0,0.00017808,2]
[424469924,1780937447000,-500.0,0.00017808,2]
[424469937,1780937447000,-500.0,0.00017808,2]
[424469933,1780937447000,-500.0,0.00017808,2]
[424469926,1780937447000,-500.0,0.00017808,2]
[424469938,1780937447000,-730.06,0.00017808,2]
[424470025,1780937448000,-1512.15,0.00018082,2]
[424470024,1780937448000,-701.8,0.00018082,2]
[424470015,1780937448000,-500.0,0.00018082,2]
[424470017,1780937448000,-1380.01,0.00018082,2]
[424470016,1780937448000,-530.06,0.00018082,2]
[424470013,1780937448000,-500.0,0.00018082,2]
[424470012,1780937448000,-2009.88,0.00018082,2]
[424470020,1780937448000,-500.0,0.00018082,2]
[424470021,1780937448000,-1265.64,0.00018082,2]
[424470011,1780937448000,-500.0,0.00018082,2]
[424470026,1780937448000,-500.0,0.00018082,2]
[424470018,1780937448000,-500.0,0.00018082,2]
[424470023,1780937448000,-2681.41,0.00018082,2]
[424470029,1780937448000,-741.25,0.00018082,2]
[424470031,1780937448000,-500.0,0.00018082,2]
[424470028,1780937448000,-605.61,0.00018082,2]
[424470033,1780937448000,-9045.613469,0.000181,2]
[424470034,1780937448000,-187.966775,0.00018226,2]
[424470032,1780937448000,-200.0,0.000181,2]
[424470035,1780937448000,-151.0,0.000183,2]
[424470038,1780937448000,-500.0,0.00018356,2]
[424470037,1780937448000,-500.0,0.00018356,2]
[424470036,1780937448000,-500.0,0.00018356,2]
[424470039,1780937448000,-500.0,0.00018356,2]
[424470041,1780937448000,-500.0,0.00018356,2]
[424470014,1780937448000,-500.0,0.00018082,2]
[424470027,1780937448000,-500.0,0.00018082,2]
[424470009,1780937448000,-500.0,0.00018082,2]
[424469997,1780937448000,-500.0,0.00018082,2]
[424470019,1780937448000,-560.11,0.00018082,2]
[424469984,1780937448000,-174.87537824,0.00017826,2]
[424469983,1780937448000,-159.91060279,0.00017826,2]
[424469987,1780937448000,-272.204907,0.00017962,2]
[424469986,1780937448000,-178.97133489,0.00017826,2]
[424469994,1780937448000,-151.0,0.00018059,2]
[424469985,1780937448000,-159.50480651,0.00017826,2]
[424469995,1780937448000,-500.0,0.00018082,2]
[424469989,1780937448000,-1000.0,0.00018005,2]
[424469990,1780937448000,-791.0,0.00018005,2]
[424469988,1780937448000,-199.15911801,0.00018,2]
[424469991,1780937448000,-181.469939,0.00018008,2]
[424469992,1780937448000,-202.43923738,0.00018044,2]
[424469993,1780937448000,-186.68670463,0.00018044,2]
[424470042,1780937448000,-626.32,0.00018356,2]
[424469996,1780937448000,-500.0,0.00018082,2]
[424469998,1780937448000,-500.0,0.00018082,2]
[424469999,1780937448000,-500.0,0.00018082,2]
[424470002,1780937448000,-500.0,0.00018082,2]
[424470004,1780937448000,-500.0,0.00018082,2]
[424470000,1780937448000,-500.0,0.00018082,2]
[424470007,1780937448000,-500.0,0.00018082,2]
[424470001,1780937448000,-626.32,0.00018082,2]
[424470008,1780937448000,-722.56,0.00018082,2]
[424470003,1780937448000,-500.0,0.00018082,2]
[424470005,1780937448000,-500.0,0.00018082,2]
[424470006,1780937448000,-9671.73,0.00018082,2]
[424470010,1780937448000,-730.06,0.00018082,2]
[424470022,1780937448000,-796.01,0.00018082,2]
[424470040,1780937448000,-500.0,0.00018356,2]
[424470030,1780937448000,-500.0,0.00018082,2]
[424470054,1780937448000,-500.0,0.00018356,2]
[424470073,1780937448000,-825.0,0.0001836,2]
[424470072,1780937448000,-500.0,0.00018356,2]
[424470074,1780937448000,-162.0,0.00018476,2]
[424470076,1780937448000,-2035.043233,0.00018571,2]
[424470077,1780937448000,-155.02302148,0.00018581,2]
[424470081,1780937448000,-389.48154204,0.00018581,2]
[424470090,1780937448000,-308.99068137,0.00018581,2]
[424470091,1780937448000,-320.15320788,0.00018581,2]
[424470092,1780937448000,-350.66850544,0.00018581,2]
[424470082,1780937448000,-300.30888642,0.00018581,2]
[424470084,1780937448000,-210.54948387,0.00018581,2]
[424470085,1780937448000,-372.226735,0.00018581,2]
[424470093,1780937448000,-304.65731706,0.00018581,2]
[424470080,1780937448000,-395.15342369,0.00018581,2]
[424470086,1780937448000,-303.66537778,0.00018581,2]
[424470088,1780937448000,-436.97426506,0.00018581,2]
[424470087,1780937448000,-332.89535793,0.00018581,2]
[424470095,1780937448000,-307.88835972,0.00018581,2]
[424470103,1780937448000,-360.52841686,0.00018581,2]
[424470094,1780937448000,-334.15928514,0.00018581,2]
[424470099,1780937448000,-375.00523209,0.00018581,2]
[424470098,1780937448000,-306.83233679,0.00018581,2]
[424470097,1780937448000,-319.98336404,0.00018581,2]
[424470096,1780937448000,-323.63074155,0.00018581,2]
[424470100,1780937448000,-415.36938664,0.00018581,2]
[424470102,1780937448000,-834.94648398,0.00018581,2]
[424470101,1780937448000,-649.61276572,0.00018581,2]
[424470044,1780937448000,-500.0,0.00018356,2]
[424470089,1780937448000,-434.70136772,0.00018581,2]
[424470071,1780937448000,-500.0,0.00018356,2]
[424470083,1780937448000,-327.46716908,0.00018581,2]
[424470070,1780937448000,-741.25,0.00018356,2]
[424470075,1780937448000,-785.091116,0.00018508,2]
[424470045,1780937448000,-500.0,0.00018356,2]
[424470046,1780937448000,-552.51820732,0.00018356,2]
[424470047,1780937448000,-9671.73,0.00018356,2]
[424470048,1780937448000,-500.0,0.00018356,2]
[424470049,1780937448000,-722.56,0.00018356,2]
[424470050,1780937448000,-500.0,0.00018356,2]
[424470052,1780937448000,-500.0,0.00018356,2]
[424470053,1780937448000,-2009.88,0.00018356,2]
[424470051,1780937448000,-730.06,0.00018356,2]
[424470055,1780937448000,-500.0,0.00018356,2]
[424470056,1780937448000,-500.0,0.00018356,2]
[424470066,1780937448000,-1512.15,0.00018356,2]
[424470067,1780937448000,-500.0,0.00018356,2]
[424470043,1780937448000,-500.0,0.00018356,2]
[424470061,1780937448000,-500.0,0.00018356,2]
[424470078,1780937448000,-317.71585567,0.00018581,2]
[424470068,1780937448000,-500.0,0.00018356,2]
[424470069,1780937448000,-605.61,0.00018356,2]
[424470063,1780937448000,-796.01,0.00018356,2]
[424470057,1780937448000,-530.06,0.00018356,2]
[424470062,1780937448000,-1265.64,0.00018356,2]
[424470079,1780937448000,-307.56661202,0.00018581,2]
[424470059,1780937448000,-500.0,0.00018356,2]
[424470058,1780937448000,-1380.01,0.00018356,2]
[424470060,1780937448000,-560.11,0.00018356,2]
[424470064,1780937448000,-2681.41,0.00018356,2]
[424470065,1780937448000,-701.8,0.00018356,2]
[424470146,1780937449000,-381.60477319,0.00018641,2]
[424470144,1780937449000,-500.0,0.0001863,2]
[424470156,1780937449000,-418.46415813,0.00018641,2]
[424470155,1780937449000,-422.34720955,0.00018641,2]
[424470145,1780937449000,-716.69,0.0001863,2]
[424470140,1780937449000,-500.0,0.0001863,2]
[424470142,1780937449000,-741.25,0.0001863,2]
[424470137,1780937449000,-701.8,0.0001863,2]
[424470136,1780937449000,-2681.41,0.0001863,2]
[424470138,1780937449000,-1512.15,0.0001863,2]
[424470148,1780937449000,-156.56032621,0.00018641,2]
[424470132,1780937449000,-560.11,0.0001863,2]
[424470139,1780937449000,-500.0,0.0001863,2]
[424470149,1780937449000,-243.14703717,0.00018641,2]
[424470154,1780937449000,-398.22841209,0.00018641,2]
[424470147,1780937449000,-376.32959976,0.00018641,2]
[424470153,1780937449000,-184.07461497,0.00018641,2]
[424470151,1780937449000,-171.22286574,0.00018641,2]
[424470152,1780937449000,-318.07678578,0.00018641,2]
[424470168,1780937449000,-319.82120557,0.00018643,2]
[424470157,1780937449000,-226.71660342,0.00018641,2]
[424470158,1780937449000,-358.37807816,0.00018641,2]
[424470160,1780937449000,-317.3052119,0.00018641,2]
[424470159,1780937449000,-309.34261713,0.00018641,2]
[424470166,1780937449000,-389.03933286,0.00018643,2]
[424470162,1780937449000,-394.99094581,0.00018641,2]
[424470165,1780937449000,-382.33498813,0.00018643,2]
[424470135,1780937449000,-796.01,0.0001863,2]
[424470150,1780937449000,-382.52609678,0.00018641,2]
[424470141,1780937449000,-605.61,0.0001863,2]
[424470104,1780937449000,-1342.238017,0.00018588,2]
[424470134,1780937449000,-1265.64,0.0001863,2]
[424470163,1780937449000,-361.33234609,0.00018641,2]
[424470105,1780937449000,-356.6162121,0.00018596,2]
[424470107,1780937449000,-324.27,0.0001862,2]
[424470110,1780937449000,-500.0,0.0001863,2]
[424470106,1780937449000,-151.0,0.00018607,2]
[424470109,1780937449000,-500.0,0.0001863,2]
[424470111,1780937449000,-500.0,0.0001863,2]
[424470113,1780937449000,-500.0,0.0001863,2]
[424470112,1780937449000,-500.0,0.0001863,2]
[424470108,1780937449000,-185.206271,0.00018625,2]
[424470115,1780937449000,-626.32,0.0001863,2]
[424470114,1780937449000,-500.0,0.0001863,2]
[424470116,1780937449000,-500.0,0.0001863,2]
[424470143,1780937449000,-500.0,0.0001863,2]
[424470129,1780937449000,-530.06,0.0001863,2]
[424470130,1780937449000,-1380.01,0.0001863,2]
[424470118,1780937449000,-500.0,0.0001863,2]
[424470120,1780937449000,-500.0,0.0001863,2]
[424470121,1780937449000,-722.56,0.0001863,2]
[424470125,1780937449000,-2009.88,0.0001863,2]
[424470128,1780937449000,-500.0,0.0001863,2]
[424470122,1780937449000,-500.0,0.0001863,2]
[424470126,1780937449000,-500.0,0.0001863,2]
[424470124,1780937449000,-500.0,0.0001863,2]
[424470127,1780937449000,-500.0,0.0001863,2]
[424470123,1780937449000,-730.06,0.0001863,2]
[424470131,1780937449000,-500.0,0.0001863,2]
[424470133,1780937449000,-500.0,0.0001863,2]
[424470119,1780937449000,-9671.73,0.0001863,2]
[424470164,1780937449000,-300.00179438,0.00018641,2]
[424470117,1780937449000,-500.0,0.0001863,2]
[424470167,1780937449000,-164.44539645,0.00018643,2]
[424470197,1780937449000,-722.56,0.00018904,2]
[424470200,1780937449000,-500.0,0.00018904,2]
[424470207,1780937449000,-500.0,0.00018904,2]
[424470201,1780937449000,-2009.88,0.00018904,2]
[424470198,1780937449000,-500.0,0.00018904,2]
[424470203,1780937449000,-500.0,0.00018904,2]
[424470208,1780937449000,-560.11,0.00018904,2]
[424470216,1780937449000,-500.0,0.00018904,2]
[424470211,1780937449000,-796.01,0.00018904,2]
[424470215,1780937449000,-500.0,0.00018904,2]
[424470214,1780937449000,-1512.15,0.00018904,2]
[424470213,1780937449000,-701.8,0.00018904,2]
[424470217,1780937449000,-605.61,0.00018904,2]
[424470210,1780937449000,-1265.64,0.00018904,2]
[424470219,1780937449000,-500.0,0.00018904,2]
[424470209,1780937449000,-500.0,0.00018904,2]
[424470212,1780937449000,-2681.41,0.00018904,2]
[424470218,1780937449000,-741.25,0.00018904,2]
[424470220,1780937449000,-500.0,0.00018904,2]
[424470222,1780937449000,-892257.50843792,0.00019,2]
[424470221,1780937449000,-716.69,0.00018904,2]
[424470223,1780937449000,-205438.09956456,0.00019,2]
[424470224,1780937449000,-25000.0,0.00019,2]
[424470228,1780937449000,-161.870186,0.0001911,2]
[424470225,1780937449000,-200.0,0.000191,2]
[424470227,1780937449000,-160.935093,0.0001911,2]
[424470229,1780937449000,-310.04604295,0.00019124,2]
[424470230,1780937449000,-476.5737835,0.00019124,2]
[424470161,1780937449000,-399.93426658,0.00018641,2]